fUSD/lending_fUSD_20260426
["ID","MTS","AMOUNT","RATE_DAILY","PERIOD"]
[421147697,1777161138145,-160.0,0.00041096,29]
[421147698,1777161138155,-1000.0,0.00041096,30]
[421147699,1777161138164,-151.0,0.00041096,28]
[421147700,1777161138173,-187.78006526,0.00041096,31]
[421147701,1777161138183,-1000.0,0.00041096,32]
[421147702,1777161138192,-151.0,0.00041096,30]
[421147703,1777161138202,-1000.0,0.00041096,28]
[421147704,1777161138212,-500.0,0.00041096,28]
[421147705,1777161138221,-151.0,0.00041096,28]
[421147706,1777161138231,-1000.0,0.00041096,29]
[421147707,1777161138240,-518.5,0.00041096,29]
[421147708,1777161138249,-151.0,0.00041096,31]
[421147709,1777161138258,-151.0,0.00041096,28]
[421147710,1777161138268,-1000.0,0.00041096,29]
[421147711,1777161138277,-537.6845,0.00041096,28]
[421147712,1777161138286,-156.587,0.00041096,30]
[421147713,1777161138296,-1000.0,0.00041096,31]
[421147714,1777161138305,-557.5788265,0.00041096,28]
[421147715,1777161138318,-162.380719,0.00041096,30]
[421147716,1777161138327,-578.20924308,0.00041096,32]
[421147717,1777161138336,-1000.0,0.00041096,30]
[421147718,1777161138346,-168.3888056,0.00041096,31]
[421147719,1777161138355,-599.60298507,0.00041096,32]
[421147720,1777161138365,-1000.0,0.00041096,29]
[421147721,1777161138374,-621.78829552,0.00041096,30]
[421147722,1777161138383,-1000.0,0.00041096,32]
[421147723,1777161138392,-1037.0,0.00041096,31]
[421147724,1777161138401,-251.0,0.00041096,30]
[421147725,1777161138410,-1075.369,0.00041096,31]
[421147726,1777161138420,-260.287,0.00041096,32]
[421147727,1777161138429,-1115.157653,0.00041096,31]
[421147728,1777161138438,-269.917619,0.00041096,29]
[421147729,1777161138448,-1156.41848616,0.00041096,31]
[421147730,1777161138457,-151.0,0.00041096,32]
[421147731,1777161138467,-1199.20597015,0.00041096,30]
[421147732,1777161138476,-156.587,0.00041096,32]
[421147733,1777161138486,-1243.57659104,0.00041096,30]
[421147734,1777161138495,-162.380719,0.00041096,31]
[421147735,1777161138505,-168.3888056,0.00041096,32]
[421147736,1777161138516,-174.61919141,0.00041096,31]
[421147737,1777161138526,-181.08010149,0.00041096,30]
[421147738,1777161138535,-187.78006524,0.00041096,32]
[421147739,1777161138544,-1000.0,0.00041096,120]
[421147740,1777161138554,-182.0,0.00041096,30]
[421147741,1777161138563,-1818.0,0.00041096,120]
[421147742,1777161138572,-1818.0,0.00041096,70]
[421147743,1777161138582,-1818.0,0.00041096,60]
[421147744,1777161138591,-1818.0,0.00041096,30]
[421147745,1777161138600,-1818.0,0.00041096,65]
[421147746,1777161138609,-1111.10555556,0.00041096,30]
[421147747,1777161138618,-165.800296,0.00041096,120]
[421147748,1777161138627,-165.800296,0.00041096,120]
[421147749,1777161138637,-165.800296,0.00041096,120]
[421147750,1777161138647,-165.800296,0.00041096,120]
[421147751,1777161138656,-165.800296,0.00041096,120]
[421147752,1777161138665,-165.800296,0.00041096,120]
[421147753,1777161138674,-165.800296,0.00041096,120]
[421147754,1777161138684,-165.800296,0.00041096,120]
[421147755,1777161138692,-165.800296,0.00041096,120]
[421147756,1777161138701,-165.800296,0.00041096,120]
[421147757,1777161138711,-165.800296,0.00041096,120]
[421147758,1777161138720,-165.800296,0.00041096,120]
[421147759,1777161138729,-165.800296,0.00041096,120]
[421147760,1777161138739,-151.0,0.00041096,120]
[421147761,1777161138748,-165.800296,0.00041096,120]
[421147762,1777161138757,-151.0,0.00041096,120]
[421147763,1777161138767,-165.800296,0.00041096,120]
[421147764,1777161138776,-151.0,0.00041096,120]
[421147765,1777161138785,-165.800296,0.00041096,120]
[421147766,1777161138794,-151.0,0.00041096,120]
[421147767,1777161138803,-165.800296,0.00041096,120]
[421147768,1777161138812,-151.0,0.00041096,120]
[421147769,1777161138822,-165.800296,0.00041096,120]
[421147770,1777161138831,-165.800296,0.00041096,120]
[421147771,1777161138840,-151.0,0.00041096,120]
[421147772,1777161138850,-165.800295,0.00041096,120]
[421147773,1777161138859,-151.0,0.00041096,120]
[421147774,1777161138868,-151.0,0.00041096,120]
[421147775,1777161138877,-151.0,0.00041096,120]
[421147776,1777161138886,-151.0,0.00041096,120]
[421147777,1777161138895,-151.0,0.00041096,120]
[421147778,1777161138904,-151.0,0.00041096,120]
[421147779,1777161138914,-152.845984,0.00041096,120]
[421147780,1777161138923,-151.0,0.00041096,120]
[421147781,1777161138933,-151.0,0.00041096,120]
[421147782,1777161138943,-151.0,0.00041096,120]
[421147783,1777161138952,-300.603344,0.00041096,120]
[421147784,1777161138963,-277.085217,0.00041096,120]
[421147785,1777161138973,-277.085217,0.00041096,120]
[421147786,1777161138983,-277.085217,0.00041096,120]
[421147787,1777161138993,-277.085217,0.00041096,120]
[421147788,1777161139002,-277.085217,0.00041096,120]
[421147789,1777161139012,-277.085217,0.00041096,120]
[421147790,1777161139021,-277.085217,0.00041096,120]
[421147791,1777161139031,-277.085217,0.00041096,120]
[421147792,1777161139042,-277.085217,0.00041096,120]
[421147793,1777161139052,-277.085217,0.00041096,120]
[421147794,1777161139062,-277.085217,0.00041096,120]
[421147795,1777161139071,-277.085217,0.00041096,120]
[421147796,1777161139081,-277.085217,0.00041096,120]
[421147797,1777161139091,-277.085217,0.00041096,120]
[421147798,1777161139101,-277.085217,0.00041096,120]
[421147799,1777161139110,-277.085217,0.00041096,120]
[421147800,1777161139120,-277.085217,0.00041096,120]
[421147801,1777161139129,-277.085217,0.00041096,120]
[421147802,1777161139138,-277.085217,0.00041096,120]
[421147803,1777161139147,-277.085217,0.00041096,120]
[421147804,1777161139156,-195.52618,0.00041096,120]
[421147805,1777161139166,-195.52618,0.00041096,120]
[421147806,1777161139175,-195.52618,0.00041096,120]
[421147807,1777161139184,-195.52618,0.00041096,120]
[421147808,1777161139194,-195.52618,0.00041096,120]
[421147809,1777161139203,-195.52618,0.00041096,120]
[421147810,1777161139212,-195.52618,0.00041096,120]
[421147811,1777161139222,-195.52618,0.00041096,120]
[421147812,1777161139231,-195.52618,0.00041096,120]
[421147813,1777161139240,-195.52618,0.00041096,120]
[421147814,1777161139250,-195.52618,0.00041096,120]
[421147815,1777161139259,-195.52618,0.00041096,120]
[421147816,1777161139269,-195.52618,0.00041096,120]
[421147817,1777161139278,-195.52618,0.00041096,120]
[421147818,1777161139287,-195.52618,0.00041096,120]
[421147819,1777161139296,-195.52618,0.00041096,120]
[421147820,1777161139306,-195.52618,0.00041096,120]
[421147821,1777161139315,-195.52618,0.00041096,120]
[421147822,1777161139325,-195.52618,0.00041096,120]
[421147823,1777161139334,-195.526188,0.00041096,120]
[421147824,1777161139343,-1622.473068,0.00041096,120]
[421147825,1777161139353,-1622.473068,0.00041096,120]
[421147826,1777161139362,-1622.473068,0.00041096,120]
[421147827,1777161139371,-1622.473068,0.00041096,120]
[421147828,1777161139381,-1622.473068,0.00041096,120]
[421147829,1777161139390,-1622.473068,0.00041096,120]
[421147830,1777161139399,-1622.473068,0.00041096,120]
[421147831,1777161139408,-1622.473068,0.00041096,120]
[421147832,1777161139418,-1622.473068,0.00041096,120]
[421147833,1777161139427,-1622.473068,0.00041096,120]
[421147834,1777161139436,-1622.473068,0.00041096,120]
[421147835,1777161139446,-1622.473068,0.00041096,120]
[421147836,1777161139455,-1622.473068,0.00041096,120]
[421147837,1777161139465,-1622.473068,0.00041096,120]
[421147838,1777161139474,-1622.473068,0.00041096,120]
[421147839,1777161139483,-1622.473068,0.00041096,120]
[421147840,1777161139493,-1622.473068,0.00041096,120]
[421147841,1777161139503,-1622.473068,0.00041096,120]
[421147842,1777161139512,-1622.473068,0.00041096,120]
[421147843,1777161139522,-1622.473072,0.00041096,120]
[421147844,1777161139531,-1907.79194,0.00041096,120]
[421147845,1777161139541,-1907.79194,0.00041096,120]
[421147846,1777161139551,-1907.79194,0.00041096,120]
[421147847,1777161139560,-1907.79194,0.00041096,120]
[421147848,1777161139570,-1907.79194,0.00041096,120]
[421147849,1777161139580,-1907.79194,0.00041096,120]
[421147850,1777161139589,-1907.79194,0.00041096,120]
[421147851,1777161139599,-1907.79194,0.00041096,120]
[421147852,1777161139609,-1907.79194,0.00041096,120]
[421147853,1777161139618,-1907.79194,0.00041096,120]
[421147854,1777161139628,-1907.79194,0.00041096,120]
[421147855,1777161139638,-1907.79194,0.00041096,120]
[421147856,1777161139647,-1907.79194,0.00041096,120]
[421147857,1777161139656,-1907.79194,0.00041096,120]
[421147858,1777161139666,-1907.79194,0.00041096,120]
[421147859,1777161139675,-1907.79194,0.00041096,120]
[421147860,1777161139685,-1907.79194,0.00041096,120]
[421147861,1777161139694,-1907.79194,0.00041096,120]
[421147862,1777161139704,-1907.79194,0.00041096,120]
[421147863,1777161139714,-1907.791942,0.00041096,120]
[421147864,1777161139724,-151.0,0.00041096,120]
[421147865,1777161139733,-151.0,0.00041096,120]
[421147866,1777161139743,-151.0,0.00041096,120]
[421147867,1777161139752,-151.0,0.00041096,120]
[421147868,1777161139763,-179.327611,0.00041096,120]
[421147869,1777161139773,-1071.328601,0.00041096,120]
[421147870,1777161139782,-1071.328601,0.00041096,120]
[421147871,1777161139791,-1071.328601,0.00041096,120]
[421147872,1777161139800,-1071.328601,0.00041096,120]
[421147873,1777161139810,-1071.328601,0.00041096,120]
[421147874,1777161139820,-1071.328601,0.00041096,120]
[421147875,1777161139829,-1071.328601,0.00041096,120]
[421147876,1777161139839,-1071.328601,0.00041096,120]
[421147877,1777161139848,-1071.328601,0.00041096,120]
[421147878,1777161139858,-1071.328601,0.00041096,120]
[421147879,1777161139868,-1071.328601,0.00041096,120]
[421147880,1777161139878,-1071.328601,0.00041096,120]
[421147881,1777161139888,-1071.328601,0.00041096,120]
[421147882,1777161139898,-1071.328601,0.00041096,120]
[421147883,1777161139907,-1071.328601,0.00041096,120]
[421147884,1777161139917,-1071.328601,0.00041096,120]
[421147885,1777161139926,-1071.328601,0.00041096,120]
[421147886,1777161139935,-1071.328601,0.00041096,120]
[421147887,1777161139945,-1071.328601,0.00041096,120]
[421147888,1777161139954,-1071.328593,0.00041096,120]
[421147889,1777161139964,-151.0,0.00041096,14]
[421147890,1777161139973,-151.0,0.00041096,14]
[421147891,1777161139983,-151.0,0.00041096,14]
[421147892,1777161139992,-247.631764,0.00041096,14]
[421147893,1777161140003,-151.0,0.00041096,120]
[421147894,1777161140013,-151.0,0.00041096,120]
[421147895,1777161140023,-151.0,0.00041096,120]
[421147896,1777161140032,-151.0,0.00041096,120]
[421147897,1777161140042,-151.0,0.00041096,120]
[421147898,1777161140051,-151.0,0.00041096,120]
[421147899,1777161140061,-151.0,0.00041096,120]
[421147900,1777161140074,-215.408029,0.00041096,120]
[421147901,1777161140083,-11436.202697,0.00041096,120]
[421147902,1777161140093,-11436.202697,0.00041096,120]
[421147903,1777161140103,-11436.202697,0.00041096,120]
[421147904,1777161140112,-11436.202697,0.00041096,120]
[421147905,1777161140122,-11436.202697,0.00041096,120]
[421147906,1777161140131,-11436.202697,0.00041096,120]
[421147907,1777161140141,-11436.202697,0.00041096,120]
[421147908,1777161140150,-11436.202697,0.00041096,120]
[421147909,1777161140160,-11436.202697,0.00041096,120]
[421147910,1777161140170,-11436.202697,0.00041096,120]
[421147911,1777161140179,-11436.202697,0.00041096,120]
[421147912,1777161140189,-11436.202697,0.00041096,120]
[421147913,1777161140199,-11436.202697,0.00041096,120]
[421147914,1777161140209,-11436.202697,0.00041096,120]
[421147915,1777161140219,-11436.202697,0.00041096,120]
[421147916,1777161140229,-11436.202697,0.00041096,120]
[421147917,1777161140239,-11436.202697,0.00041096,120]
[421147918,1777161140249,-11436.202697,0.00041096,120]
[421147919,1777161140259,-11436.202697,0.00041096,120]
[421147920,1777161140269,-11436.20269,0.00041096,120]
[421147921,1777161140279,-1181.913933,0.00041096,120]
[421147922,1777161140289,-1181.913933,0.00041096,120]
[421147923,1777161140299,-1181.913933,0.00041096,120]
[421147924,1777161140308,-1181.913933,0.00041096,120]
[421147925,1777161140318,-1181.913933,0.00041096,120]
[421147926,1777161140328,-1181.913933,0.00041096,120]
[421147927,1777161140339,-1181.913933,0.00041096,120]
[421147928,1777161140349,-1181.913933,0.00041096,120]
[421147929,1777161140358,-1181.913933,0.00041096,120]
[421147930,1777161140368,-1181.913933,0.00041096,120]
[421147931,1777161140377,-1181.913933,0.00041096,120]
[421147932,1777161140387,-1181.913933,0.00041096,120]
[421147933,1777161140397,-1181.913933,0.00041096,120]
[421147934,1777161140408,-1181.913933,0.00041096,120]
[421147935,1777161140417,-1181.913933,0.00041096,120]
[421147936,1777161140427,-1181.913933,0.00041096,120]
[421147937,1777161140437,-1181.913933,0.00041096,120]
[421147938,1777161140446,-1181.913933,0.00041096,120]
[421147939,1777161140456,-1181.913933,0.00041096,120]
[421147940,1777161140466,-1181.913926,0.00041096,120]
[421147941,1777161140475,-6824.1209,0.00041096,120]
[421147942,1777161140485,-6824.1209,0.00041096,120]
[421147943,1777161140495,-6824.1209,0.00041096,120]
[421147944,1777161140505,-6824.1209,0.00041096,120]
[421147945,1777161140515,-6824.1209,0.00041096,120]
[421147946,1777161140525,-6824.1209,0.00041096,120]
[421147947,1777161140534,-6824.1209,0.00041096,120]
[421147948,1777161140544,-6824.1209,0.00041096,120]
[421147949,1777161140553,-6824.1209,0.00041096,120]
[421147950,1777161140563,-6824.1209,0.00041096,120]
[421147951,1777161140574,-6824.1209,0.00041096,120]
[421147952,1777161140583,-6824.1209,0.00041096,120]
[421147953,1777161140593,-6824.1209,0.00041096,120]
[421147954,1777161140603,-6824.1209,0.00041096,120]
[421147955,1777161140612,-6824.1209,0.00041096,120]
[421147956,1777161140622,-6824.1209,0.00041096,120]
[421147957,1777161140632,-6824.1209,0.00041096,120]
[421147958,1777161140642,-6824.1209,0.00041096,120]
[421147959,1777161140651,-6824.1209,0.00041096,120]
[421147960,1777161140661,-6824.120907,0.00041096,120]
[421147961,1777161140670,-15345.214045,0.00041096,120]
[421147962,1777161140680,-3672.34937715,0.00041096,120]
[421147963,1777161141809,-2170.86881757,0.00041096,120]
[421147964,1777161141828,-825.0,0.0002,30]
[421147965,1777161141840,-797.4465798,0.00041096,120]
[421147966,1777161142731,-3781.0,8.688e-05,2]
[421147967,1777161142741,-825.0,0.00022148,30]
[421147968,1777161142751,-825.0,0.00024297,60]
[421147969,1777161142761,-825.0,0.00026445,60]
[421147970,1777161142775,-825.0,0.00028593,60]
[421147971,1777161142785,-1048.0,0.00029,2]
[421147972,1777161142795,-1048.0,0.0003,7]
[421147973,1777161142805,-825.0,0.00030741,60]
[421147974,1777161142815,-151.0,0.00032877,7]
[421147975,1777161142825,-151.0,0.00032877,7]
[421147976,1777161142834,-151.0,0.00032877,7]
[421147977,1777161142845,-825.0,0.0003289,90]
[421147978,1777161142855,-825.0,0.00035038,90]
[421147979,1777161142865,-825.0,0.00037186,90]
[421147980,1777161142875,-471.58450167,0.000372,120]
[421147981,1777161142885,-300.0,0.00039251,2]
[421147982,1777161142896,-1867.81958224,0.00041096,120]
[421147983,1777161142912,-379.12940536,0.00041096,120]
[421147984,1777161144206,-151.0,0.00032877,7]
[421147985,1777161144216,-6457.60028288,0.00041096,120]
[421147986,1777161144226,-10598.25940455,0.00041096,120]
[421147987,1777161144240,-843.199996,0.00041096,120]
[421147988,1777161144259,-3903.75464445,0.00041096,120]
[421147989,1777161144268,-1666.69989523,0.00041096,120]
[421147990,1777161145538,473.2109,7.505e-05,2]
[421147991,1777161150617,300.0,7.504e-05,2]
[421147992,1777161181130,300.0,7.504e-05,2]
[421147993,1777161241890,300.0,7.504e-05,2]
[421147994,1777161245533,500.0,7.504e-05,2]
[421147995,1777161245585,242.89016486,7.504e-05,2]
[421147996,1777161258597,500.0,7.504e-05,2]
[421147997,1777161258638,500.0,7.504e-05,2]
[421147998,1777161258678,176.4802997,7.504e-05,2]
[421147999,1777161258713,500.0,7.504e-05,2]
[421148000,1777161258750,500.0,7.504e-05,2]
[421148001,1777161258787,500.0,7.504e-05,2]
[421148002,1777161258823,500.0,7.504e-05,2]
[421148003,1777161258859,500.0,7.504e-05,2]
[421148004,1777161258894,500.0,7.504e-05,2]
[421148005,1777161258933,500.0,7.504e-05,2]
[421148006,1777161259009,500.0,7.504e-05,2]
[421148007,1777161259060,500.0,7.504e-05,2]
[421148008,1777161283918,500.0,7.504e-05,2]
[421148009,1777161283962,500.0,7.504e-05,2]
[421148010,1777161301122,1200.0,7.504e-05,2]
[421148011,1777161301387,300.0,7.504e-05,2]
[421148012,1777161361232,180.63953544,7.504e-05,2]
[421148013,1777161361258,119.36046456,7.504e-05,2]
[421148014,1777161417363,193.94913492,7.497e-05,2]
[421148015,1777161419204,150.0,7.497e-05,2]
[421148016,1777161421186,300.0,7.504e-05,2]
[421148017,1777161422140,150.0,7.504e-05,2]
[421148018,1777161422650,300.0,7.504e-05,2]
[421148019,1777161478979,8786.70040052,1.31e-05,3]
[421148020,1777161479004,10000.01,1.31e-05,3]
[421148021,1777161479028,10000.01,1.31e-05,3]
[421148022,1777161479052,10000.01,1.31e-05,3]
[421148023,1777161479075,10000.01,1.31e-05,3]
[421148024,1777161479099,10000.01,1.31e-05,3]
[421148025,1777161479123,10000.01,1.31e-05,3]
[421148026,1777161479145,10000.01,1.31e-05,3]
[421148027,1777161479168,10000.01,1.31e-05,3]
[421148028,1777161479202,587100.0255712,1.31e-05,3]
[421148029,1777161489221,-300.0,7.504e-05,2]
[421148030,1777161601159,300.0,7.504e-05,2]
[421148031,1777161601192,1200.0,7.504e-05,2]
[421148032,1777161601984,150.0,7.504e-05,2]
[421148033,1777161661172,300.0,7.504e-05,2]
[421148034,1777161689261,1877.732,7.355e-05,2]
[421148035,1777161689565,175.621,7.355e-05,2]
[421148036,1777161721424,300.0,7.504e-05,2]
[421148037,1777161841154,300.0,7.504e-05,2]
[421148038,1777161901080,1200.0,7.504e-05,2]
[421148039,1777161901133,300.0,7.504e-05,2]
[421148040,1777161966017,520.0231154,7.504e-05,2]
[421148041,1777161979147,500.0,7.504e-05,2]
[421148042,1777161979182,286.23783897,7.504e-05,2]
[421148043,1777162022276,300.0,7.504e-05,2]
[421148044,1777162056931,-250.0,7.683e-05,2]
[421148045,1777162064785,-195.0,7.816e-05,2]
[421148046,1777162064816,-150.0,7.816e-05,2]
[421148047,1777162064847,-150.0,7.816e-05,2]
[421148048,1777162064878,-150.0,7.816e-05,2]
[421148049,1777162064906,-150.0,7.816e-05,2]
[421148050,1777162064935,-150.0,7.816e-05,2]
[421148051,1777162064964,-150.0,7.816e-05,2]
[421148052,1777162064994,-150.0,7.816e-05,2]
[421148053,1777162065024,-150.0,7.816e-05,2]
[421148054,1777162081046,-150.0,7.903e-05,2]
[421148055,1777162096197,-150.0,7.99e-05,2]
[421148056,1777162116693,-1000.0,8e-05,2]
[421148057,1777162128874,-250.0,8e-05,2]
[421148058,1777162139767,284.71352936,7.992e-05,2]
[421148059,1777162200443,500.0,7.405e-05,2]
[421148062,1777162231963,-250.0,8.069e-05,2]
[421148063,1777162231972,-150.0,8.077e-05,2]
[421148064,1777162231982,-150.0,8.106e-05,2]
[421148065,1777162231992,-150.0,8.164e-05,2]
[421148066,1777162232002,-280.0,8.219e-05,2]
[421148067,1777162232018,-150.0,8.251e-05,2]
[421148068,1777162232028,-150.0,8.251e-05,2]
[421148069,1777162232038,-12.2457146,8.251e-05,2]
[421148070,1777162232050,-137.7542854,8.251e-05,2]
[421148071,1777162232060,-446.06224283,8.254e-05,2]
[421148072,1777162232075,-544.02,8.254e-05,2]
[421148073,1777162232109,-209.91775717,8.254e-05,2]
[421148074,1777162232120,-2500.0,8.255e-05,2]
[421148075,1777162232130,-150.0,8.338e-05,2]
[421148076,1777162232141,-150.0,8.395e-05,2]
[421148077,1777162232151,-150.0,8.424e-05,2]
[421148078,1777162232161,-176.6,8.428e-05,2]
[421148079,1777162232171,-227.05,8.504e-05,2]
[421148080,1777162232181,-150.0,8.511e-05,2]
[421148081,1777162232191,-150.0,8.598e-05,2]
[421148082,1777162232201,-195.35395892,8.685e-05,2]
[421148083,1777162232211,-150.0,8.685e-05,2]
[421148084,1777162232221,-150.0,8.685e-05,2]
[421148085,1777162232231,-153.95685762,8.685e-05,2]
[421148086,1777162232240,-210.0695,8.685e-05,2]
[421148087,1777162232251,-182.93100001,8.685e-05,2]
[421148088,1777162232260,-150.0,8.685e-05,2]
[421148089,1777162232269,-2500.0,8.694e-05,2]
[421148090,1777162232280,-500.0,8.699e-05,2]
[421148091,1777162232290,-304.66037634,8.699e-05,2]
[421148092,1777162232299,-364.01618078,8.699e-05,2]
[421148093,1777162232309,-360194.87926074,8.7e-05,2]
[421148094,1777162232323,-5581.40131924,8.7e-05,2]
[421148096,1777162232336,-2583.6146505,8.7e-05,2]
[421148098,1777162232348,-2912.59550705,8.7e-05,2]
[421148100,1777162232361,-2874.6952,8.7e-05,2]
[421148103,1777162232379,-2740.465,8.7e-05,2]
[421148112,1777162232452,-6272.81329441,8.7e-05,2]
[421148114,1777162232465,-3177.84132518,8.7e-05,2]
[421148116,1777162232477,-1763.97926805,8.7e-05,2]
[421148118,1777162232490,-2800.70070936,8.7e-05,2]
[421148119,1777162232502,-468.75595281,8.7e-05,2]
[421148120,1777162232514,-2212.01251569,8.7e-05,2]
[421148121,1777162232527,-351.02307539,8.7e-05,2]
[421148122,1777162232539,-491.0360497,8.7e-05,2]
[421148123,1777162232552,-342.48315084,8.7e-05,2]
[421148124,1777162232569,-916.68337832,8.7e-05,2]
[421148128,1777162238217,-31645.81000332,8.7e-05,2]
[421148129,1777162238231,-14860.68728384,8.7e-05,2]
[421148130,1777162238371,-3918.26731134,8.7e-05,2]
[421148131,1777162238385,-3946.76635945,8.7e-05,2]
[421148132,1777162238425,-515.9530991,8.7e-05,2]
[421148133,1777162238481,-702.0,8.7e-05,2]
[421148134,1777162238534,-721.79,8.7e-05,2]
[421148176,1777162240479,-18545.11561705,8.7e-05,2]
[421148177,1777162240529,-571.90539993,8.7e-05,2]
[421148178,1777162240543,-885.1413525,8.7e-05,2]
[421148205,1777162243207,-195579.9860193,8.7e-05,2]
[421148206,1777162243218,-500.0,8.8e-05,2]
[421148207,1777162243228,-500.0,8.8e-05,2]
[421148208,1777162243238,-500.0,8.8e-05,2]
[421148209,1777162243248,-500.0,8.8e-05,2]
[421148210,1777162243259,-250.0,8.8e-05,2]
[421148211,1777162243269,-2500.0,8.876e-05,2]
[421148212,1777162243280,-2500.0,8.876e-05,2]
[421148213,1777162243290,-2500.0,8.876e-05,2]
[421148214,1777162243301,-300.0,8.876e-05,2]
[421148215,1777162243311,-5000.0,8.876e-05,2]
[421148216,1777162243322,-5000.0,8.876e-05,2]
[421148217,1777162243332,-5000.0,8.876e-05,2]
[421148218,1777162243343,-5000.0,8.876e-05,2]
[421148219,1777162243353,-500.0,8.876e-05,2]
[421148220,1777162243363,-250.0,8.876e-05,2]
[421148221,1777162243373,-300.0,8.876e-05,2]
[421148222,1777162243383,-193.0,8.876e-05,2]
[421148223,1777162243392,-2000.0,9e-05,3]
[421148224,1777162243403,-1680.0,9.08e-05,2]
[421148225,1777162243413,-500.0,9.988e-05,2]
[421148226,1777162243424,-299.99,9.988e-05,2]
[421148227,1777162243434,-2351.0,9.988e-05,2]
[421148228,1777162243444,-172.73435348,0.0001,2]
[421148229,1777162243455,-150.99,0.0001,2]
[421148230,1777162243464,-9999.99,0.0001,2]
[421148231,1777162243474,-151.0,0.0001,2]
[421148232,1777162243484,-151.0,0.0001,2]
[421148233,1777162243495,-151.0,0.0001,2]
[421148234,1777162243506,-151.0,0.0001,2]
[421148235,1777162243515,-151.0,0.0001,2]
[421148236,1777162243526,-151.0,0.0001,2]
[421148237,1777162243536,-151.0,0.0001,2]
[421148238,1777162243546,-151.0,0.0001,2]
[421148239,1777162243556,-151.0,0.0001,2]
[421148240,1777162243566,-151.0,0.0001,2]
[421148241,1777162243576,-151.0,0.0001,2]
[421148242,1777162243586,-151.0,0.0001,2]
[421148243,1777162243597,-151.0,0.0001,2]
[421148244,1777162243606,-25629.21668367,0.00010538,2]
[421148245,1777162243616,-177.0,0.00010898,2]
[421148246,1777162243626,-3292.0,0.00010987,2]
[421148247,1777162243636,-627.0,0.00010996,2]
[421148248,1777162243646,-162.24807931,0.0001155,2]
[421148249,1777162243655,-160.0,0.0001155,2]
[421148250,1777162243666,-25135.08558227,0.00011667,2]
[421148263,1777162246513,-658.03402278,0.00011667,2]
[421148282,1777163432282,-280.0,8.219e-05,2]
[421148283,1777163432292,-1164.63396235,8.219e-05,2]
[421148284,1777163432303,-300.0,8.22e-05,2]
[421148285,1777163432312,-300.0,8.22e-05,2]
[421148286,1777163432321,-15.69876731,8.22e-05,2]
[421148287,1777163432334,-234.30123269,8.22e-05,2]
[421148288,1777163432343,-500.0,8.22e-05,2]
[421148289,1777163432353,-5000.0,8.221e-05,2]
[421148290,1777163432363,-1200.0,8.221e-05,2]
[421148291,1777163432373,-300.0,8.221e-05,2]
[421148292,1777163432383,-500.0,8.222e-05,2]
[421148293,1777163432392,-500.0,8.222e-05,2]
[421148294,1777163432402,-300.0,8.223e-05,2]
[421148295,1777163432411,-300.0,8.223e-05,2]
[421148296,1777163432421,-300.0,8.223e-05,2]
[421148297,1777163432431,-300.0,8.223e-05,2]
[421148298,1777163432440,-5000.0,8.224e-05,2]
[421148299,1777163432450,-300.0,8.231e-05,2]
[421148300,1777163432460,-150.0,9.04e-05,2]
[421148301,1777163432470,-276.85,9.041e-05,2]
[421148302,1777163432480,-300.0,9.041e-05,2]
[421148303,1777163432490,-5000.0,9.041e-05,2]
[421148304,1777163432499,-300.0,9.041e-05,2]
[421148305,1777163432508,-2500.0,9.041e-05,2]
[421148306,1777163432517,-300.0,9.041e-05,2]
[421148307,1777163432528,-250.0,9.041e-05,2]
[421148308,1777163432537,-5000.0,9.041e-05,2]
[421148309,1777163432547,-300.0,9.041e-05,2]
[421148310,1777163432556,-300.0,9.041e-05,2]
[421148311,1777163432565,-500.0,9.041e-05,2]
[421148312,1777163432575,-2500.0,9.041e-05,2]
[421148313,1777163432584,-300.0,9.041e-05,2]
[421148314,1777163432594,-5000.0,9.042e-05,2]